fUSD/lending_fUSD_20240330
["ID","MTS","AMOUNT","RATE_DAILY","PERIOD"]
[321030313,1711803050455,-500.0,0.00041938,4]
[321030314,1711803050464,-500.0,0.00041938,4]
[321030315,1711803050473,-2514.31,0.00041938,4]
[321030316,1711803050483,-500.0,0.00041938,4]
[321030317,1711803050492,-4769.79,0.00041938,4]
[321030318,1711803050501,-500.0,0.00041938,4]
[321030319,1711803050511,-546.38,0.00041938,4]
[321030320,1711803050520,-1675.81,0.00041938,4]
[321030321,1711803050529,-500.0,0.00041938,4]
[321030322,1711803050538,-500.0,0.00041938,4]
[321030323,1711803050547,-500.0,0.00041938,4]
[321030324,1711803050557,-10788.55,0.00041938,4]
[321030325,1711803050566,-500.0,0.00041938,4]
[321030326,1711803050705,-1584.62,0.00041938,4]
[321030327,1711803050734,-500.0,0.00041938,4]
[321030328,1711803050743,-2515.94,0.00041938,4]
[321030329,1711803050752,-1036.81,0.00041938,4]
[321030330,1711803050762,-500.0,0.00041938,4]
[321030331,1711803050771,-3938.3,0.00041938,4]
[321030332,1711803050781,-514.19297435,0.00041938,4]
[321030333,1711803050790,-1992.63,0.00041938,4]
[321030334,1711803050800,-515.14786681,0.00041938,4]
[321030335,1711803050809,-500.0,0.00041938,4]
[321030336,1711803050819,-500.0,0.00041938,4]
[321030337,1711803050828,-500.0,0.00041938,4]
[321030338,1711803050838,-558.71,0.00041938,4]
[321030339,1711803050848,-1538.71,0.00041938,4]
[321030340,1711803050857,-1212.96,0.00041938,4]
[321030341,1711803050867,-500.0,0.00041938,4]
[321030342,1711803050877,-500.0,0.00041938,4]
[321030343,1711803050887,-507.19483484,0.00041938,4]
[321030344,1711803050896,-500.0,0.00041938,4]
[321030345,1711803050906,-1340.76,0.00041938,4]
[321030346,1711803050915,-500.0,0.00041938,4]
[321030347,1711803050925,-2007.68,0.00041938,4]
[321030348,1711803050934,-500.0,0.00041938,4]
[321030349,1711803050944,-207.46314996,0.0004194,2]
[321030350,1711803050953,-186.14677309,0.0004194,2]
[321030351,1711803050962,-6073.81542523,0.00041941,2]
[321030352,1711803050972,-64267.05209899,0.00041942,2]
[321030353,1711803050981,-1506.17,0.00041943,4]
[321030354,1711803050991,-690.40396042,0.00041944,2]
[321030355,1711803051000,-64267.05209899,0.00041944,2]
[321030356,1711803051010,-186.14677309,0.00041945,2]
[321030357,1711803051019,-64267.05209899,0.00041947,2]
[321030358,1711803051029,-690.40396042,0.00041948,2]
[321030359,1711803051038,-1104.36468148,0.00041949,2]
[321030360,1711803051048,-32726.66137463,0.00041951,2]
[321030361,1711803051057,-158.0,0.00041953,15]
[321030362,1711803051067,-150.5,0.00041953,15]
[321030363,1711803051077,-64267.05209899,0.00041956,2]
[321030364,1711803051087,-64267.05209899,0.00041957,2]
[321030365,1711803051096,-1506.17,0.00041957,4]
[321030366,1711803051105,-24274.22769757,0.00041958,2]
[321030367,1711803051539,-8452.43367706,0.00041958,2]
[321030368,1711803051549,-207.46314996,0.0004196,2]
[321030369,1711803051559,-1104.36468148,0.00041962,2]
[321030370,1711803051568,-158.0,0.00041963,15]
[321030371,1711803051577,-150.5,0.00041963,15]
[321030372,1711803051587,-1104.36468148,0.00041964,2]
[321030373,1711803051598,-186.14677309,0.00041964,2]
[321030374,1711803051607,-32726.66137463,0.00041965,2]
[321030375,1711803051618,-207.46314996,0.00041966,2]
[321030376,1711803051627,-64267.05209899,0.00041967,2]
[321030377,1711803051636,-690.40396042,0.00041968,2]
[321030378,1711803051645,-12223.0424736,0.00041969,2]
[321030379,1711803051654,-15747.7684469,0.00041969,2]
[321030380,1711803051663,-690.40396042,0.0004197,2]
[321030381,1711803051672,-158.0,0.00041973,15]
[321030382,1711803051681,-150.5,0.00041973,15]
[321030383,1711803051692,-1104.36468148,0.00041977,2]
[321030384,1711803051702,-690.40396042,0.0004198,2]
[321030385,1711803051711,-25658.19492388,0.0004198,5]
[321030386,1711803051720,-186.14677309,0.0004198,2]
[321030387,1711803051729,-207.46314996,0.00041981,2]
[321030388,1711803051739,-64267.05209899,0.00041982,2]
[321030389,1711803051748,-32726.66137463,0.00041983,2]
[321030390,1711803051759,-1506.17,0.00041984,4]
[321030391,1711803051768,-191.33950028,0.00041985,2]
[321030392,1711803051779,-32726.66137463,0.00041985,2]
[321030393,1711803051790,-207.46314996,0.00041988,2]
[321030394,1711803051800,-1104.36468148,0.00041991,2]
[321030395,1711803051811,-186.14677309,0.00041992,2]
[321030396,1711803051821,-42516.70797661,0.00041992,2]
[321030397,1711803051832,-1506.17,0.00041994,4]
[321030398,1711803051844,-1506.17,0.00041994,4]
[321030399,1711803051855,-1506.17,0.00041994,4]
[321030400,1711803051866,-1506.17,0.00041994,4]
[321030401,1711803051877,-1506.17,0.00041994,4]
[321030402,1711803051886,-358.79342133,0.00041995,10]
[321030403,1711803051898,-1106.9366784,0.00041995,3]
[321030404,1711803051908,-1230066.38186961,0.00041995,3]
[321030405,1711803052249,-500.0,0.00041662,4]
[321030406,1711803052260,-500.0,0.00041663,4]
[321030407,1711803052269,-193.67708483,0.00041896,8]
[321030408,1711803052279,-500.0,0.00041936,4]
[321030409,1711803052288,-500.0,0.00041937,4]
[321030410,1711803052298,-93054.21130886,0.00041995,3]
[321030411,1711803052307,-1104.36468148,0.00041996,2]
[321030412,1711803052316,-500.0,0.00041997,4]
[321030413,1711803052325,-500.0,0.00041997,4]
[321030414,1711803052334,-1506.17,0.00041997,4]
[321030415,1711803052344,-500.0,0.00041998,4]
[321030416,1711803052353,-500.0,0.00041998,4]
[321030417,1711803052362,-525.05434971,0.00041998,4]
[321030418,1711803052371,-500.0,0.00041998,4]
[321030419,1711803052380,-500.0,0.00041998,4]
[321030420,1711803052391,-500.0,0.00041998,4]
[321030421,1711803052400,-500.0,0.00041998,4]
[321030422,1711803052409,-500.0,0.00041998,4]
[321030423,1711803052418,-500.0,0.00041998,4]
[321030424,1711803052428,-500.0,0.00041998,4]
[321030425,1711803052437,-500.0,0.00041998,4]
[321030426,1711803052446,-500.0,0.00041998,4]
[321030427,1711803052455,-500.0,0.00041998,4]
[321030428,1711803052464,-500.0,0.00041998,4]
[321030429,1711803052474,-513.5745617,0.00041998,4]
[321030430,1711803052483,-500.0,0.00041998,4]
[321030431,1711803052492,-500.0,0.00041998,4]
[321030432,1711803052502,-500.0,0.00041998,4]
[321030433,1711803052511,-500.0,0.00041998,4]
[321030434,1711803052520,-500.0,0.00041998,4]
[321030435,1711803052529,-500.0,0.00041998,4]
[321030436,1711803052538,-500.0,0.00041998,4]
[321030437,1711803052548,-500.0,0.00041998,4]
[321030438,1711803052557,-500.0,0.00041998,4]
[321030439,1711803052567,-500.0,0.00041998,4]
[321030440,1711803052576,-500.0,0.00041998,4]
[321030441,1711803052585,-551.42601931,0.00041998,4]
[321030442,1711803052595,-500.0,0.00041998,4]
[321030443,1711803052604,-544.7162699,0.00041998,4]
[321030444,1711803052614,-500.0,0.00041998,4]
[321030445,1711803052623,-500.0,0.00041998,4]
[321030446,1711803052632,-500.0,0.00041998,4]
[321030447,1711803052641,-506.96419983,0.00041998,4]
[321030448,1711803052652,-500.0,0.00041998,4]
[321030449,1711803052661,-500.0,0.00041998,4]
[321030450,1711803052670,-268.00761418,0.00041998,4]
[321030451,1711803052679,-500.0,0.00041998,4]
[321030452,1711803052689,-500.0,0.00041998,4]
[321030453,1711803052698,-500.0,0.00041998,4]
[321030454,1711803052707,-500.0,0.00041998,4]
[321030455,1711803052883,-500.0,0.00041998,4]
[321030456,1711803052893,-500.0,0.00041998,4]
[321030457,1711803052902,-500.0,0.00041998,4]
[321030458,1711803052911,-500.0,0.00041998,4]
[321030459,1711803052921,-500.0,0.00041998,4]
[321030460,1711803052930,-517.86026253,0.00041998,4]
[321030461,1711803052939,-500.0,0.00041998,4]
[321030462,1711803052948,-500.0,0.00041998,4]
[321030463,1711803052957,-500.0,0.00041998,4]
[321030464,1711803052966,-500.0,0.00041998,4]
[321030465,1711803052975,-500.0,0.00041998,4]
[321030466,1711803052984,-500.0,0.00041998,4]
[321030467,1711803052993,-519.39108538,0.00041998,4]
[321030468,1711803053002,-500.0,0.00041998,4]
[321030469,1711803053011,-500.0,0.00041998,4]
[321030470,1711803053020,-500.0,0.00041998,4]
[321030471,1711803053029,-500.0,0.00041998,4]
[321030472,1711803053038,-500.0,0.00041998,4]
[321030473,1711803053046,-500.0,0.00041998,4]
[321030474,1711803053055,-500.0,0.00041998,4]
[321030475,1711803053064,-500.0,0.00041998,4]
[321030476,1711803053074,-500.0,0.00041998,4]
[321030477,1711803053083,-500.0,0.00041998,4]
[321030478,1711803053092,-500.0,0.00041998,4]
[321030479,1711803053102,-607.04598557,0.00041998,4]
[321030480,1711803053111,-500.0,0.00041998,4]
[321030481,1711803053120,-500.0,0.00041998,4]
[321030482,1711803053129,-500.0,0.00041998,4]
[321030483,1711803053138,-500.0,0.00041998,2]
[321030484,1711803053152,-500.0,0.00041998,4]
[321030485,1711803053161,-500.0,0.00041998,4]
[321030486,1711803053170,-520.75853014,0.00041998,4]
[321030487,1711803053179,-500.0,0.00041998,4]
[321030488,1711803053189,-500.0,0.00041998,4]
[321030489,1711803053198,-500.0,0.00041998,4]
[321030490,1711803053208,-300.56134684,0.00041998,4]
[321030491,1711803053217,-500.0,0.00041998,4]
[321030492,1711803053227,-500.0,0.00041998,4]
[321030493,1711803053236,-500.0,0.00041998,4]
[321030494,1711803053245,-500.0,0.00041998,4]
[321030495,1711803053254,-520.39709523,0.00041998,4]
[321030496,1711803053264,-500.0,0.00041998,4]
[321030497,1711803053273,-500.0,0.00041998,4]
[321030498,1711803053282,-500.0,0.00041998,4]
[321030499,1711803053292,-500.0,0.00041998,4]
[321030500,1711803053301,-512.53148018,0.00041998,4]
[321030501,1711803053311,-511.71766678,0.00041998,4]
[321030502,1711803053320,-514.98490582,0.00041998,4]
[321030503,1711803053329,-500.0,0.00041998,4]
[321030504,1711803053338,-500.0,0.00041998,4]
[321030505,1711803053348,-500.0,0.00041998,4]
[321030506,1711803053357,-500.0,0.00041998,4]
[321030507,1711803053366,-500.0,0.00041998,4]
[321030508,1711803053375,-500.0,0.00041998,4]
[321030509,1711803053384,-500.0,0.00041998,4]
[321030510,1711803053393,-500.0,0.00041998,4]
[321030511,1711803053402,-500.0,0.00041998,4]
[321030512,1711803053411,-636.60673905,0.00041998,4]
[321030513,1711803053420,-500.0,0.00041998,4]
[321030514,1711803053430,-500.0,0.00041998,4]
[321030515,1711803053441,-500.0,0.00041998,4]
[321030516,1711803053450,-430.85792742,0.00041998,4]
[321030517,1711803053459,-500.0,0.00041998,4]
[321030518,1711803053469,-500.0,0.00041998,4]
[321030519,1711803053478,-500.0,0.00041998,4]
[321030520,1711803053487,-500.0,0.00041998,4]
[321030521,1711803053496,-500.0,0.00041998,4]
[321030522,1711803053506,-518.22649092,0.00041998,4]
[321030523,1711803053515,-500.0,0.00041998,4]
[321030524,1711803053524,-500.0,0.00041998,4]
[321030525,1711803053533,-511.20001776,0.00041998,4]
[321030526,1711803053542,-500.0,0.00041998,4]
[321030527,1711803053551,-500.0,0.00041998,4]
[321030528,1711803053561,-522.50032205,0.00041998,4]
[321030529,1711803053571,-500.0,0.00041998,4]
[321030530,1711803053580,-500.0,0.00041998,4]
[321030531,1711803053589,-500.0,0.00041998,4]
[321030532,1711803053599,-521.23079011,0.00041998,4]
[321030533,1711803053608,-500.0,0.00041998,4]
[321030534,1711803053617,-500.0,0.00041998,4]
[321030535,1711803053626,-500.0,0.00041998,4]
[321030536,1711803053635,-500.0,0.00041998,4]
[321030537,1711803053644,-524.42083332,0.00041998,4]
[321030538,1711803053653,-500.0,0.00041998,4]
[321030539,1711803053663,-500.0,0.00041998,4]
[321030540,1711803053672,-500.0,0.00041998,4]
[321030541,1711803053681,-500.0,0.00041998,4]
[321030542,1711803053691,-500.0,0.00041998,4]
[321030543,1711803053700,-197.20973544,0.00041998,4]
[321030544,1711803053709,-508.55660806,0.00041998,4]
[321030545,1711803053719,-500.0,0.00041998,4]
[321030546,1711803053728,-500.0,0.00041998,4]
[321030547,1711803053737,-500.0,0.00041998,4]
[321030548,1711803053746,-500.0,0.00041998,4]
[321030549,1711803053755,-517.63544915,0.00041998,4]
[321030550,1711803053764,-500.0,0.00041998,4]
[321030551,1711803053773,-500.0,0.00041998,4]
[321030552,1711803053782,-500.0,0.00041998,4]
[321030553,1711803053791,-500.0,0.00041998,4]
[321030554,1711803053800,-500.0,0.00041998,4]
[321030555,1711803053809,-500.0,0.00041998,4]
[321030556,1711803053818,-500.0,0.00041998,4]
[321030557,1711803053827,-500.0,0.00041998,4]
[321030558,1711803053836,-500.0,0.00041998,4]
[321030559,1711803053846,-500.0,0.00041998,4]
[321030560,1711803053855,-500.0,0.00041998,4]
[321030561,1711803053864,-500.0,0.00041998,4]
[321030562,1711803053873,-500.0,0.00041998,4]
[321030563,1711803053883,-515.51191703,0.00041998,4]
[321030564,1711803053892,-500.0,0.00041998,4]
[321030565,1711803053901,-500.0,0.00041998,4]
[321030566,1711803053910,-504.59402739,0.00041998,4]
[321030567,1711803053919,-500.0,0.00041998,4]
[321030568,1711803053928,-500.0,0.00041998,4]
[321030569,1711803053938,-500.0,0.00041998,4]
[321030570,1711803053946,-500.0,0.00041998,4]
[321030571,1711803053955,-500.0,0.00041998,4]
[321030572,1711803053965,-500.0,0.00041998,4]
[321030573,1711803053973,-500.0,0.00041998,4]
[321030574,1711803053982,-500.0,0.00041998,4]
[321030575,1711803053991,-500.0,0.00041998,4]
[321030576,1711803054000,-500.0,0.00041998,4]
[321030577,1711803054009,-511.46762373,0.00041998,4]
[321030578,1711803054018,-508.5358538,0.00041998,4]
[321030579,1711803054027,-500.0,0.00041998,4]
[321030580,1711803054037,-500.0,0.00041998,4]
[321030581,1711803054046,-500.0,0.00041998,4]
[321030582,1711803054055,-500.0,0.00041998,4]
[321030583,1711803054064,-500.0,0.00041998,4]
[321030584,1711803054073,-519.01458438,0.00041998,4]
[321030585,1711803054082,-500.0,0.00041998,4]
[321030586,1711803054091,-500.0,0.00041998,2]
[321030587,1711803054101,-500.0,0.00041998,4]
[321030588,1711803054110,-500.14345507,0.00041998,4]
[321030589,1711803054119,-500.0,0.00041998,4]
[321030590,1711803054129,-695.66,0.00041998,4]
[321030591,1711803054140,-513.62150018,0.00041998,4]
[321030592,1711803054153,-500.0,0.00041998,4]
[321030593,1711803054163,-500.0,0.00041998,4]
[321030594,1711803054173,-500.0,0.00041998,4]
[321030595,1711803054182,-500.0,0.00041998,4]
[321030596,1711803054192,-500.0,0.00041998,4]
[321030597,1711803054202,-508.78620944,0.00041998,4]
[321030598,1711803054211,-500.0,0.00041998,4]
[321030599,1711803054225,-500.0,0.00041998,4]
[321030600,1711803054236,-500.0,0.00041998,4]
[321030601,1711803054246,-500.0,0.00041998,4]
[321030602,1711803054256,-503.08179946,0.00041998,4]
[321030603,1711803054266,-500.0,0.00041998,4]
[321030604,1711803054276,-588.91,0.00041998,4]
[321030605,1711803054286,-500.0,0.00041998,4]
[321030606,1711803054296,-500.0,0.00041998,4]
[321030607,1711803054306,-500.0,0.00041998,4]
[321030608,1711803054317,-500.0,0.00041998,4]
[321030609,1711803054327,-500.0,0.00041998,4]
[321030610,1711803054336,-500.92764485,0.00041998,4]
[321030611,1711803054345,-521.6944531,0.00041998,4]
[321030612,1711803054356,-500.0,0.00041998,4]
[321030613,1711803054365,-500.0,0.00041998,4]
[321030614,1711803054375,-500.0,0.00041998,4]
[321030615,1711803054384,-500.0,0.00041998,4]
[321030616,1711803054393,-500.0,0.00041998,4]
[321030617,1711803054403,-500.0,0.00041998,4]
[321030618,1711803054411,-500.0,0.00041998,4]
[321030619,1711803054421,-500.0,0.00041998,4]
[321030620,1711803054430,-500.0,0.00041998,4]
[321030621,1711803054443,-500.0,0.00041998,4]
[321030622,1711803054452,-500.0,0.00041998,4]
[321030623,1711803054464,-500.0,0.00041998,4]
[321030624,1711803054473,-500.0,0.00041998,4]
[321030625,1711803054482,-500.0,0.00041998,4]
[321030626,1711803054492,-535.41360925,0.00041998,4]
[321030627,1711803054502,-500.0,0.00041998,4]
[321030628,1711803054511,-500.0,0.00041998,4]
[321030629,1711803054521,-500.0,0.00041998,4]
[321030630,1711803054530,-500.0,0.00041998,4]
[321030631,1711803054540,-508.46880839,0.00041998,4]
[321030632,1711803054549,-500.0,0.00041998,4]
[321030633,1711803054558,-500.0,0.00041998,4]
[321030634,1711803054567,-1294.61,0.00041998,4]
[321030635,1711803054576,-500.0,0.00041998,4]
[321030636,1711803054585,-500.0,0.00041998,4]
[321030637,1711803054594,-500.0,0.00041998,4]
[321030638,1711803054605,-500.0,0.00041998,4]
[321030639,1711803054615,-500.0,0.00041998,4]
[321030640,1711803054624,-500.0,0.00041998,4]
[321030641,1711803054633,-521.6483254,0.00041998,4]
[321030642,1711803054642,-500.0,0.00041998,4]
[321030643,1711803054651,-500.0,0.00041998,4]
[321030644,1711803054659,-500.0,0.00041998,4]
[321030645,1711803054669,-500.0,0.00041998,4]
[321030646,1711803054678,-512.04657686,0.00041998,4]
[321030647,1711803054687,-530.12647873,0.00041998,4]
[321030648,1711803054697,-500.0,0.00041998,4]
[321030649,1711803054706,-500.0,0.00041998,4]
[321030650,1711803054715,-500.0,0.00041998,4]
[321030651,1711803054724,-500.0,0.00041998,4]
[321030652,1711803054733,-500.0,0.00041998,4]
[321030653,1711803054742,-500.0,0.00041998,4]
[321030654,1711803054751,-500.0,0.00041998,4]
[321030655,1711803054761,-500.0,0.00041998,4]
[321030656,1711803054771,-500.0,0.00041998,4]
[321030657,1711803054780,-500.0,0.00041998,4]
[321030658,1711803054790,-500.0,0.00041998,4]
[321030659,1711803054799,-500.0,0.00041998,4]
[321030660,1711803054808,-500.0,0.00041998,4]
[321030661,1711803054818,-500.0,0.00041998,4]
[321030662,1711803054826,-530.38,0.00041998,4]
[321030663,1711803054836,-500.0,0.00041998,4]
[321030664,1711803054846,-511.40829056,0.00041998,4]
[321030665,1711803054858,-500.0,0.00041998,4]
[321030666,1711803054867,-500.0,0.00041998,4]
[321030667,1711803054876,-500.0,0.00041998,4]
[321030668,1711803054884,-500.0,0.00041998,4]
[321030669,1711803054893,-500.0,0.00041998,4]
[321030670,1711803054902,-519.18440335,0.00041998,4]
[321030671,1711803054911,-500.0,0.00041998,4]
[321030672,1711803054920,-500.0,0.00041998,4]
[321030673,1711803054929,-500.0,0.00041998,4]
[321030674,1711803054938,-500.0,0.00041998,4]
[321030675,1711803054948,-500.0,0.00041998,4]
[321030676,1711803054958,-500.0,0.00041998,4]
[321030677,1711803054967,-500.0,0.00041998,4]
[321030678,1711803054976,-513.00777048,0.00041998,4]
[321030679,1711803054985,-500.0,0.00041998,4]
[321030680,1711803054994,-500.0,0.00041998,4]
[321030681,1711803055002,-500.0,0.00041998,4]
[321030682,1711803055011,-500.0,0.00041998,4]
[321030683,1711803055021,-302.53418188,0.00041998,4]
[321030684,1711803055030,-504.8000714,0.00041998,4]
[321030685,1711803055040,-500.0,0.00041998,4]
[321030686,1711803055049,-500.0,0.00041998,4]
[321030687,1711803055058,-500.0,0.00041998,4]
[321030688,1711803055067,-500.0,0.00041998,4]
[321030689,1711803055076,-509.83045474,0.00041998,4]
[321030690,1711803055086,-500.0,0.00041998,4]
[321030691,1711803055096,-500.0,0.00041998,4]
[321030692,1711803055106,-505.09636568,0.00041998,4]
[321030693,1711803055116,-500.0,0.00041998,4]
[321030694,1711803055125,-500.0,0.00041998,4]
[321030695,1711803055135,-500.0,0.00041998,15]
[321030696,1711803055148,-500.0,0.00041998,4]
[321030697,1711803055158,-500.0,0.00041998,4]
[321030698,1711803055299,-500.0,0.00041998,4]
[321030699,1711803055309,-500.0,0.00041998,4]
[321030700,1711803055318,-500.0,0.00041998,4]
[321030701,1711803055329,-500.0,0.00041998,4]
[321030702,1711803055338,-500.0,0.00041998,4]
[321030703,1711803055348,-500.0,0.00041998,4]
[321030704,1711803055358,-500.0,0.00041998,4]
[321030705,1711803055367,-500.0,0.00041998,4]
[321030706,1711803055376,-500.0,0.00041998,4]
[321030707,1711803055385,-500.0,0.00041998,4]
[321030708,1711803055395,-500.0,0.00041998,4]
[321030709,1711803055404,-500.0,0.00041998,4]
[321030710,1711803055413,-500.0,0.00041998,4]
[321030711,1711803055423,-500.0,0.00041998,4]
[321030712,1711803055432,-500.0,0.00041998,4]
[321030713,1711803055441,-500.0,0.00041998,4]
[321030714,1711803055451,-500.0,0.00041998,4]
[321030715,1711803055460,-500.0,0.00041998,4]
[321030716,1711803055469,-500.0,0.00041998,4]
[321030717,1711803055479,-500.0,0.00041998,4]
[321030718,1711803055489,-500.0,0.00041998,4]
[321030719,1711803055499,-500.0,0.00041998,4]
[321030720,1711803055509,-300.0,0.00041998,2]
[321030721,1711803055519,-500.0,0.00041998,4]
[321030722,1711803055528,-500.0,0.00041998,4]
[321030723,1711803055537,-500.0,0.00041998,4]
[321030724,1711803055546,-500.0,0.00041998,4]
[321030725,1711803055555,-500.0,0.00041998,4]
[321030726,1711803055565,-500.0,0.00041998,4]
[321030727,1711803055574,-500.0,0.00041998,4]
[321030728,1711803055583,-500.0,0.00041998,4]
[321030729,1711803055593,-500.0,0.00041998,4]
[321030730,1711803055602,-500.0,0.00041998,4]
[321030731,1711803055611,-500.0,0.00041998,4]
[321030732,1711803055620,-500.0,0.00041998,4]
[321030733,1711803055630,-500.0,0.00041998,4]
[321030734,1711803055640,-500.0,0.00041998,4]
[321030735,1711803055649,-500.0,0.00041998,4]
[321030736,1711803055658,-500.0,0.00041998,4]
[321030737,1711803055667,-500.0,0.00041998,4]
[321030738,1711803055678,-500.0,0.00041998,4]
[321030739,1711803055687,-500.0,0.00041998,4]
[321030740,1711803055697,-500.0,0.00041998,4]
[321030741,1711803055706,-500.0,0.00041998,4]
[321030742,1711803055715,-500.0,0.00041998,4]
[321030743,1711803055724,-508.28924702,0.00041998,4]
[321030744,1711803055734,-500.0,0.00041998,4]
[321030745,1711803055743,-500.0,0.00041998,4]
[321030746,1711803055753,-500.0,0.00041998,4]
[321030747,1711803055762,-500.0,0.00041998,4]
[321030748,1711803055772,-500.0,0.00041998,4]
[321030749,1711803055781,-500.0,0.00041998,4]
[321030750,1711803055790,-500.0,0.00041998,4]
[321030751,1711803055799,-500.0,0.00041998,4]
[321030752,1711803055808,-500.0,0.00041998,4]
[321030753,1711803055817,-500.0,0.00041998,4]
[321030754,1711803055827,-500.0,0.00041998,4]
[321030755,1711803055836,-500.0,0.00041998,4]
[321030756,1711803055845,-500.0,0.00041998,4]
[321030757,1711803055856,-500.0,0.00041998,4]
[321030758,1711803055865,-500.0,0.00041998,4]
[321030759,1711803055874,-500.0,0.00041998,4]
[321030760,1711803055884,-500.0,0.00041998,4]
[321030761,1711803055893,-500.0,0.00041998,4]
[321030762,1711803055903,-500.0,0.00041998,4]
[321030763,1711803055912,-500.0,0.00041998,4]
[321030764,1711803055921,-500.0,0.00041998,4]
[321030765,1711803055931,-500.0,0.00041998,4]
[321030766,1711803055941,-516.35644817,0.00041998,4]
[321030767,1711803055950,-508.2280153,0.00041998,4]
[321030768,1711803055960,-500.0,0.00041998,4]
[321030769,1711803055969,-921.71,0.00041998,4]
[321030770,1711803055979,-536.86,0.00041998,4]
[321030771,1711803055989,-500.0,0.00041998,4]
[321030772,1711803055998,-772.6,0.00041998,4]
[321030773,1711803056008,-500.0,0.00041998,4]
[321030774,1711803056017,-500.0,0.00041998,4]
[321030775,1711803056026,-511.51,0.00041998,4]
[321030776,1711803056036,-500.0,0.00041998,4]
[321030777,1711803056046,-500.0,0.00041998,4]
[321030778,1711803056055,-513.43709255,0.00041998,4]
[321030779,1711803056065,-500.0,0.00041998,4]
[321030780,1711803056075,-500.0,0.00041998,4]
[321030781,1711803056085,-513.09333032,0.00041998,4]
[321030782,1711803056095,-500.0,0.00041998,4]
[321030783,1711803056105,-1005.12,0.00041998,4]
[321030784,1711803056114,-500.0,0.00041998,4]
[321030785,1711803056122,-500.0,0.00041998,4]
[321030786,1711803056131,-500.0,0.00041998,4]
[321030787,1711803056143,-527.17539589,0.00041998,4]
[321030788,1711803056154,-500.0,0.00041998,4]
[321030789,1711803056164,-500.0,0.00041998,4]
[321030790,1711803056173,-500.0,0.00041998,4]
[321030791,1711803056183,-500.0,0.00041998,4]
[321030792,1711803056194,-506.89141241,0.00041998,4]
[321030793,1711803056203,-500.0,0.00041998,4]
[321030794,1711803056212,-500.0,0.00041998,4]
[321030795,1711803056222,-500.0,0.00041998,4]
[321030796,1711803056231,-500.0,0.00041998,4]
[321030797,1711803056241,-500.0,0.00041998,4]
[321030798,1711803056250,-500.0,0.00041998,4]
[321030799,1711803056260,-500.0,0.00041998,4]
[321030800,1711803056269,-500.0,0.00041998,4]
[321030801,1711803056279,-674.47,0.00041998,4]
[321030802,1711803056289,-500.0,0.00041998,4]
[321030803,1711803056299,-500.0,0.00041998,4]
[321030804,1711803056308,-500.0,0.00041998,4]
[321030805,1711803056318,-500.0,0.00041998,4]
[321030806,1711803056327,-500.0,0.00041998,4]
[321030807,1711803056337,-500.0,0.00041998,4]
[321030808,1711803056347,-500.0,0.00041998,4]
[321030809,1711803056359,-500.0,0.00041998,4]
[321030810,1711803056368,-500.0,0.00041998,4]
[321030811,1711803056378,-597.96486677,0.00041998,4]
[321030812,1711803056387,-500.0,0.00041998,4]